{"text_format":"3","workbook":"xlsx","n_sheets":14,"sheets":["советы","сводка","янв","фев","мар","апр","май","июн","июл","авг","сен","окт","ноя","дек"],"not_rendered":{"charts":1,"defined_names":27},"read":"whole","date_system":"1900"}

{"sheet":"советы","index":0,"n_rows":18,"n_cols":1,"rows_kept":18}
["СОВЕТЫ ПО ШАБЛОНАМ"]
["Можно ли быстро переходить между сводным листом \"Тенденции расходов\" и сведениями о месячных расходах?"]
["Чтобы быстро перейти к расходам за определенный месяц, щелкните ссылку навигации над диаграммой, например ссылку Янв в ячейке B2. Чтобы вернуться к листу \"Тенденции расходов\", щелкните ссылку Сводка в ячейке D1. "]
["Чтобы вернуться к этому листу советов, выберите ячейку N2 в сводном листе. Во всех листах по месяцам выберите ячейку E1."]
["Как добавить новый тип расходов в лист \"Сводка расходов\" или в новые месячные расходы?"]
["Сводка расходов под диаграммой и сведения о расходах за каждый месяц являются таблицами Excel. Чтобы добавить новые строки в любую таблицу Excel, выполните одно из указанных ниже действий."]
[{"$f":"ROW(A1)&\". Если в таблице нет строки итогов, начинайте вводить текст под таблицей, и она автоматически расширится после нажатия клавиши ВВОД или TAB.\"","v":"1. Если в таблице нет строки итогов, начинайте вводить текст под таблицей, и она автоматически расширится после нажатия клавиши ВВОД или TAB."}]
[{"$f":"ROW(A2)&\". Поместите указатель ячейки в последнюю ячейку над строкой итогов, например для итогового значения последних расходов, и нажмите клавишу TAB.\"","v":"2. Поместите указатель ячейки в последнюю ячейку над строкой итогов, например для итогового значения последних расходов, и нажмите клавишу TAB."}]
[{"$f":"ROW(A3)&\". Щелкните правой кнопкой мыши в таблице и во всплывающем меню наведите указатель на пункт \"\"Вставить\"\", а затем выберите \"\"Строки таблицы выше\"\" или \"\"Строки таблицы ниже\"\".\"","v":"3. Щелкните правой кнопкой мыши в таблице и во всплывающем меню наведите указатель на пункт \"Вставить\", а затем выберите \"Строки таблицы выше\" или \"Строки таблицы ниже\"."}]
[{"$f":"ROW(A4)&\". В правом нижнем углу таблицы поместите указатель мыши на маркер изменения размера таблицы и перетащите его вниз, чтобы увеличить количество доступных строк.\"","v":"4. В правом нижнем углу таблицы поместите указатель мыши на маркер изменения размера таблицы и перетащите его вниз, чтобы увеличить количество доступных строк."}]
["Введите сведения о расходах в столбец Расходы в листе Сводка таблицы СводкаРасходов."]
["Добавьте сумму для каждого типа расходов на листе за месяц, к которому относятся эти расходы."]
["Например: \"Расход 1\" происходит с января по июнь и в декабре. "]
[{"$f":"ROW(A1)&\". Расход 1 вводится в сводном листе в разделе \"\"Расходы\"\" таблицы \"\"СводкаРасходов\"\" (как название типа расходов).\"","v":"1. Расход 1 вводится в сводном листе в разделе \"Расходы\" таблицы \"СводкаРасходов\" (как название типа расходов)."}]
[{"$f":"ROW(A2)&\". Введите сумму расхода в соответствующих листах за те месяцы, в которых происходит расход.\"","v":"2. Введите сумму расхода в соответствующих листах за те месяцы, в которых происходит расход."}]
[{"$f":"ROW(A3)&\". На основе типа расходов из листа \"\"СводкаРасходов\"\" создается список категорий для столбца \"\"Категория\"\" в листах за каждый месяц.\"","v":"3. На основе типа расходов из листа \"СводкаРасходов\" создается список категорий для столбца \"Категория\" в листах за каждый месяц."}]
[{"$f":"ROW(A4)&\". Используя список категорий в столбце \"\"Категория\"\", выберите соответствующий тип расходов для введенной суммы.\"","v":"4. Используя список категорий в столбце \"Категория\", выберите соответствующий тип расходов для введенной суммы."}]
[{"$f":"ROW(A5)&\". Чтобы добавить новые расходы за любой месяц, добавьте новую строку в таблицу \"\"СводкаРасходов\"\" в сводном листе, а затем введите соответствующие сведения о расходах в листе за тот месяц, к которому эти расходы относятся.\"","v":"5. Чтобы добавить новые расходы за любой месяц, добавьте новую строку в таблицу \"СводкаРасходов\" в сводном листе, а затем введите соответствующие сведения о расходах в листе за тот месяц, к которому эти расходы относятся."}]

{"sheet":"сводка","index":1,"n_rows":10,"n_cols":15,"rows_kept":10}
["ТЕНДЕНЦИИ РАСХОДОВ"]
[null,"Январь","Февраль","Март","Апрель","Май","Июнь","Июль","Август","Сентябрь","Октябрь","Ноябрь","Декабрь","Советы"]
[]
["Расходы","Январь","Февраль","Март","Апрель","Май","Июнь","Июль","Август","Сентябрь","Октябрь","Ноябрь","Декабрь","Итог","Тенденции"]
["Расход 1",{"$f":"SUMIFS(РасхЯнв[Сумма], РасхЯнв[Категория], СводкаРасходов[[#This Row],[Расходы]])","v":{"v":33,"d":"33.00"}},{"$f":"SUMIFS(РасхФев[Сумма], РасхФев[Категория], СводкаРасходов[[#This Row],[Расходы]])","v":{"v":375,"d":"375.00"}},{"$f":"SUMIFS(РасхМар[Сумма], РасхМар[Категория], СводкаРасходов[[#This Row],[Расходы]])","v":{"v":33,"d":"33.00"}},{"$f":"SUMIFS(РасхАпр[Сумма], РасхАпр[Категория], СводкаРасходов[[#This Row],[Расходы]])","v":{"v":45,"d":"45.00"}},{"$f":"SUMIFS(РасхМай[Сумма], РасхМай[Категория], СводкаРасходов[[#This Row],[Расходы]])","v":{"v":375,"d":"375.00"}},{"$f":"SUMIFS(РасхИюн[Сумма], РасхИюн[Категория], СводкаРасходов[[#This Row],[Расходы]])","v":{"v":201,"d":"201.00"}},{"$f":"SUMIFS(РасхИюл[Сумма], РасхИюл[Категория], СводкаРасходов[[#This Row],[Расходы]])","v":{"v":0,"d":"0.00"}},{"$f":"SUMIFS(РасхАвг[Сумма], РасхАвг[Категория], СводкаРасходов[[#This Row],[Расходы]])","v":{"v":0,"d":"0.00"}},{"$f":"SUMIFS(РасхСен[Сумма], РасхСен[Категория], СводкаРасходов[[#This Row],[Расходы]])","v":{"v":0,"d":"0.00"}},{"$f":"SUMIFS(РасхОкт[Сумма], РасхОкт[Категория], СводкаРасходов[[#This Row],[Расходы]])","v":{"v":0,"d":"0.00"}},{"$f":"SUMIFS(РасхНоя[Сумма], РасхНоя[Категория], СводкаРасходов[[#This Row],[Расходы]])","v":{"v":0,"d":"0.00"}},{"$f":"SUMIFS(РасхДек[Сумма], РасхДек[Категория], СводкаРасходов[[#This Row],[Расходы]])","v":{"v":201,"d":"201.00"}},{"$f":"SUM(СводкаРасходов[[#This Row],[Январь]:[Декабрь]])","v":{"v":1263,"d":"1,263.00"}}]
["Расход 2",{"$f":"SUMIFS(РасхЯнв[Сумма], РасхЯнв[Категория], СводкаРасходов[[#This Row],[Расходы]])","v":{"v":238,"d":"238.00"}},{"$f":"SUMIFS(РасхФев[Сумма], РасхФев[Категория], СводкаРасходов[[#This Row],[Расходы]])","v":{"v":238,"d":"238.00"}},{"$f":"SUMIFS(РасхМар[Сумма], РасхМар[Категория], СводкаРасходов[[#This Row],[Расходы]])","v":{"v":238,"d":"238.00"}},{"$f":"SUMIFS(РасхАпр[Сумма], РасхАпр[Категория], СводкаРасходов[[#This Row],[Расходы]])","v":{"v":123,"d":"123.00"}},{"$f":"SUMIFS(РасхМай[Сумма], РасхМай[Категория], СводкаРасходов[[#This Row],[Расходы]])","v":{"v":111,"d":"111.00"}},{"$f":"SUMIFS(РасхИюн[Сумма], РасхИюн[Категория], СводкаРасходов[[#This Row],[Расходы]])","v":{"v":98,"d":"98.00"}},{"$f":"SUMIFS(РасхИюл[Сумма], РасхИюл[Категория], СводкаРасходов[[#This Row],[Расходы]])","v":{"v":0,"d":"0.00"}},{"$f":"SUMIFS(РасхАвг[Сумма], РасхАвг[Категория], СводкаРасходов[[#This Row],[Расходы]])","v":{"v":0,"d":"0.00"}},{"$f":"SUMIFS(РасхСен[Сумма], РасхСен[Категория], СводкаРасходов[[#This Row],[Расходы]])","v":{"v":0,"d":"0.00"}},{"$f":"SUMIFS(РасхОкт[Сумма], РасхОкт[Категория], СводкаРасходов[[#This Row],[Расходы]])","v":{"v":0,"d":"0.00"}},{"$f":"SUMIFS(РасхНоя[Сумма], РасхНоя[Категория], СводкаРасходов[[#This Row],[Расходы]])","v":{"v":0,"d":"0.00"}},{"$f":"SUMIFS(РасхДек[Сумма], РасхДек[Категория], СводкаРасходов[[#This Row],[Расходы]])","v":{"v":440,"d":"440.00"}},{"$f":"SUM(СводкаРасходов[[#This Row],[Январь]:[Декабрь]])","v":{"v":1486,"d":"1,486.00"}}]
["Расход 3",{"$f":"SUMIFS(РасхЯнв[Сумма], РасхЯнв[Категория], СводкаРасходов[[#This Row],[Расходы]])","v":{"v":110,"d":"110.00"}},{"$f":"SUMIFS(РасхФев[Сумма], РасхФев[Категория], СводкаРасходов[[#This Row],[Расходы]])","v":{"v":110,"d":"110.00"}},{"$f":"SUMIFS(РасхМар[Сумма], РасхМар[Категория], СводкаРасходов[[#This Row],[Расходы]])","v":{"v":110,"d":"110.00"}},{"$f":"SUMIFS(РасхАпр[Сумма], РасхАпр[Категория], СводкаРасходов[[#This Row],[Расходы]])","v":{"v":125,"d":"125.00"}},{"$f":"SUMIFS(РасхМай[Сумма], РасхМай[Категория], СводкаРасходов[[#This Row],[Расходы]])","v":{"v":333,"d":"333.00"}},{"$f":"SUMIFS(РасхИюн[Сумма], РасхИюн[Категория], СводкаРасходов[[#This Row],[Расходы]])","v":{"v":122,"d":"122.00"}},{"$f":"SUMIFS(РасхИюл[Сумма], РасхИюл[Категория], СводкаРасходов[[#This Row],[Расходы]])","v":{"v":0,"d":"0.00"}},{"$f":"SUMIFS(РасхАвг[Сумма], РасхАвг[Категория], СводкаРасходов[[#This Row],[Расходы]])","v":{"v":0,"d":"0.00"}},{"$f":"SUMIFS(РасхСен[Сумма], РасхСен[Категория], СводкаРасходов[[#This Row],[Расходы]])","v":{"v":0,"d":"0.00"}},{"$f":"SUMIFS(РасхОкт[Сумма], РасхОкт[Категория], СводкаРасходов[[#This Row],[Расходы]])","v":{"v":0,"d":"0.00"}},{"$f":"SUMIFS(РасхНоя[Сумма], РасхНоя[Категория], СводкаРасходов[[#This Row],[Расходы]])","v":{"v":0,"d":"0.00"}},{"$f":"SUMIFS(РасхДек[Сумма], РасхДек[Категория], СводкаРасходов[[#This Row],[Расходы]])","v":{"v":122,"d":"122.00"}},{"$f":"SUM(СводкаРасходов[[#This Row],[Январь]:[Декабрь]])","v":{"v":1032,"d":"1,032.00"}}]
["Расход 4",{"$f":"SUMIFS(РасхЯнв[Сумма], РасхЯнв[Категория], СводкаРасходов[[#This Row],[Расходы]])","v":{"v":426,"d":"426.00"}},{"$f":"SUMIFS(РасхФев[Сумма], РасхФев[Категория], СводкаРасходов[[#This Row],[Расходы]])","v":{"v":84,"d":"84.00"}},{"$f":"SUMIFS(РасхМар[Сумма], РасхМар[Категория], СводкаРасходов[[#This Row],[Расходы]])","v":{"v":84,"d":"84.00"}},{"$f":"SUMIFS(РасхАпр[Сумма], РасхАпр[Категория], СводкаРасходов[[#This Row],[Расходы]])","v":{"v":426,"d":"426.00"}},{"$f":"SUMIFS(РасхМай[Сумма], РасхМай[Категория], СводкаРасходов[[#This Row],[Расходы]])","v":{"v":125,"d":"125.00"}},{"$f":"SUMIFS(РасхИюн[Сумма], РасхИюн[Категория], СводкаРасходов[[#This Row],[Расходы]])","v":{"v":187,"d":"187.00"}},{"$f":"SUMIFS(РасхИюл[Сумма], РасхИюл[Категория], СводкаРасходов[[#This Row],[Расходы]])","v":{"v":0,"d":"0.00"}},{"$f":"SUMIFS(РасхАвг[Сумма], РасхАвг[Категория], СводкаРасходов[[#This Row],[Расходы]])","v":{"v":0,"d":"0.00"}},{"$f":"SUMIFS(РасхСен[Сумма], РасхСен[Категория], СводкаРасходов[[#This Row],[Расходы]])","v":{"v":0,"d":"0.00"}},{"$f":"SUMIFS(РасхОкт[Сумма], РасхОкт[Категория], СводкаРасходов[[#This Row],[Расходы]])","v":{"v":0,"d":"0.00"}},{"$f":"SUMIFS(РасхНоя[Сумма], РасхНоя[Категория], СводкаРасходов[[#This Row],[Расходы]])","v":{"v":0,"d":"0.00"}},{"$f":"SUMIFS(РасхДек[Сумма], РасхДек[Категория], СводкаРасходов[[#This Row],[Расходы]])","v":{"v":187,"d":"187.00"}},{"$f":"SUM(СводкаРасходов[[#This Row],[Январь]:[Декабрь]])","v":{"v":1519,"d":"1,519.00"}}]
["Расход 5",{"$f":"SUMIFS(РасхЯнв[Сумма], РасхЯнв[Категория], СводкаРасходов[[#This Row],[Расходы]])","v":{"v":54,"d":"54.00"}},{"$f":"SUMIFS(РасхФев[Сумма], РасхФев[Категория], СводкаРасходов[[#This Row],[Расходы]])","v":{"v":54,"d":"54.00"}},{"$f":"SUMIFS(РасхМар[Сумма], РасхМар[Категория], СводкаРасходов[[#This Row],[Расходы]])","v":{"v":109,"d":"109.00"}},{"$f":"SUMIFS(РасхАпр[Сумма], РасхАпр[Категория], СводкаРасходов[[#This Row],[Расходы]])","v":{"v":98,"d":"98.00"}},{"$f":"SUMIFS(РасхМай[Сумма], РасхМай[Категория], СводкаРасходов[[#This Row],[Расходы]])","v":{"v":33,"d":"33.00"}},{"$f":"SUMIFS(РасхИюн[Сумма], РасхИюн[Категория], СводкаРасходов[[#This Row],[Расходы]])","v":{"v":441,"d":"441.00"}},{"$f":"SUMIFS(РасхИюл[Сумма], РасхИюл[Категория], СводкаРасходов[[#This Row],[Расходы]])","v":{"v":0,"d":"0.00"}},{"$f":"SUMIFS(РасхАвг[Сумма], РасхАвг[Категория], СводкаРасходов[[#This Row],[Расходы]])","v":{"v":0,"d":"0.00"}},{"$f":"SUMIFS(РасхСен[Сумма], РасхСен[Категория], СводкаРасходов[[#This Row],[Расходы]])","v":{"v":0,"d":"0.00"}},{"$f":"SUMIFS(РасхОкт[Сумма], РасхОкт[Категория], СводкаРасходов[[#This Row],[Расходы]])","v":{"v":0,"d":"0.00"}},{"$f":"SUMIFS(РасхНоя[Сумма], РасхНоя[Категория], СводкаРасходов[[#This Row],[Расходы]])","v":{"v":0,"d":"0.00"}},{"$f":"SUMIFS(РасхДек[Сумма], РасхДек[Категория], СводкаРасходов[[#This Row],[Расходы]])","v":{"v":99,"d":"99.00"}},{"$f":"SUM(СводкаРасходов[[#This Row],[Январь]:[Декабрь]])","v":{"v":888,"d":"888.00"}}]
["Итог",{"$f":"SUBTOTAL(109,СводкаРасходов[Январь])","v":{"v":861,"d":"861.00"}},{"$f":"SUBTOTAL(109,СводкаРасходов[Февраль])","v":{"v":861,"d":"861.00"}},{"$f":"SUBTOTAL(109,СводкаРасходов[Март])","v":{"v":574,"d":"574.00"}},{"$f":"SUBTOTAL(109,СводкаРасходов[Апрель])","v":{"v":817,"d":"817.00"}},{"$f":"SUBTOTAL(109,СводкаРасходов[Май])","v":{"v":977,"d":"977.00"}},{"$f":"SUBTOTAL(109,СводкаРасходов[Июнь])","v":{"v":1049,"d":"1,049.00"}},{"$f":"SUBTOTAL(109,СводкаРасходов[Июль])","v":{"v":0,"d":"0.00"}},{"$f":"SUBTOTAL(109,СводкаРасходов[Август])","v":{"v":0,"d":"0.00"}},{"$f":"SUBTOTAL(109,СводкаРасходов[Сентябрь])","v":{"v":0,"d":"0.00"}},{"$f":"SUBTOTAL(109,СводкаРасходов[Октябрь])","v":{"v":0,"d":"0.00"}},{"$f":"SUBTOTAL(109,СводкаРасходов[Ноябрь])","v":{"v":0,"d":"0.00"}},{"$f":"SUBTOTAL(109,СводкаРасходов[Декабрь])","v":{"v":1049,"d":"1,049.00"}},{"$f":"SUBTOTAL(109,СводкаРасходов[Итог])","v":{"v":6188,"d":"6,188.00"}}]

{"sheet":"янв","index":2,"n_rows":9,"n_cols":5,"rows_kept":9,"merged":[[0,0,0,2]]}
["РАСХОДЫ ЗА ЯНВАРЬ",null,null,"Сводка","Советы"]
["Дата","№ ЗАКАЗА НА ПОКУПКУ","Сумма","Категория","Описание"]
[{"$f":"DATE(YEAR(TODAY()),1,4)","v":"2017-01-04"},"A-12345",{"v":33,"d":"33.00"},"Расход 1","Поставки"]
[{"$f":"DATE(YEAR(TODAY()),1,5)","v":"2017-01-05"},"A-12346",{"v":238,"d":"238.00"},"Расход 2"]
[null,null,{"v":342,"d":"342.00"},"Расход 4"]
[null,null,{"v":110,"d":"110.00"},"Расход 3"]
[null,null,{"v":84,"d":"84.00"},"Расход 4"]
[null,null,{"v":54,"d":"54.00"},"Расход 5"]
["Итог",null,{"$f":"SUBTOTAL(109,РасхЯнв[Сумма])","v":{"v":861,"d":"861.00"}}]

{"sheet":"фев","index":3,"n_rows":9,"n_cols":5,"rows_kept":9,"merged":[[0,0,0,2]]}
["РАСХОДЫ ЗА ФЕВРАЛЬ",null,null,"Сводка","Советы"]
["Дата","№ ЗАКАЗА НА ПОКУПКУ","Сумма","Категория","Описание"]
[{"$f":"DATE(YEAR(TODAY()),2,3)","v":"2017-02-03"},"A-12345",{"v":33,"d":"33.00"},"Расход 1","Поставки"]
[{"$f":"DATE(YEAR(TODAY()),2,4)","v":"2017-02-04"},"A-12346",{"v":238,"d":"238.00"},"Расход 2"]
[null,null,{"v":342,"d":"342.00"},"Расход 1"]
[null,null,{"v":110,"d":"110.00"},"Расход 3"]
[null,null,{"v":84,"d":"84.00"},"Расход 4"]
[null,null,{"v":54,"d":"54.00"},"Расход 5"]
["Итог",null,{"$f":"SUBTOTAL(109,РасхФев[Сумма])","v":{"v":861,"d":"861.00"}}]

{"sheet":"мар","index":4,"n_rows":9,"n_cols":5,"rows_kept":9,"merged":[[0,0,0,2]]}
["РАСХОДЫ ЗА МАРТ",null,null,"Сводка","Советы"]
["Дата","№ ЗАКАЗА НА ПОКУПКУ","Сумма","Категория","Описание"]
[{"$f":"DATE(YEAR(TODAY()),3,5)","v":"2017-03-05"},"A-12345",{"v":33,"d":"33.00"},"Расход 1","Поставки"]
[{"$f":"DATE(YEAR(TODAY()),3,6)","v":"2017-03-06"},"A-12346",{"v":238,"d":"238.00"},"Расход 2"]
[null,null,{"v":55,"d":"55.00"},"Расход 5"]
[null,null,{"v":110,"d":"110.00"},"Расход 3"]
[null,null,{"v":84,"d":"84.00"},"Расход 4"]
[null,null,{"v":54,"d":"54.00"},"Расход 5"]
["Итог",null,{"$f":"SUBTOTAL(109,РасхМар[Сумма])","v":{"v":574,"d":"574.00"}}]

{"sheet":"апр","index":5,"n_rows":9,"n_cols":5,"rows_kept":9,"merged":[[0,0,0,2]]}
["РАСХОДЫ ЗА АПРЕЛЬ",null,null,"Сводка","Советы"]
["Дата","№ ЗАКАЗА НА ПОКУПКУ","Сумма","Категория","Описание"]
[{"$f":"DATE(YEAR(TODAY()),4,4)","v":"2017-04-04"},"A-12345",{"v":45,"d":"45.00"},"Расход 1","Поставки"]
[{"$f":"DATE(YEAR(TODAY()),4,8)","v":"2017-04-08"},"A-12346",{"v":123,"d":"123.00"},"Расход 2"]
[null,null,{"v":342,"d":"342.00"},"Расход 4"]
[null,null,{"v":125,"d":"125.00"},"Расход 3"]
[null,null,{"v":84,"d":"84.00"},"Расход 4"]
[null,null,{"v":98,"d":"98.00"},"Расход 5"]
["Итог",null,{"$f":"SUBTOTAL(109,РасхАпр[Сумма])","v":{"v":817,"d":"817.00"}}]

{"sheet":"май","index":6,"n_rows":9,"n_cols":5,"rows_kept":9,"merged":[[0,0,0,2]]}
["РАСХОДЫ ЗА МАЙ",null,null,"Сводка","Советы"]
["Дата","№ ЗАКАЗА НА ПОКУПКУ","Сумма","Категория","Описание"]
[{"$f":"DATE(YEAR(TODAY()),5,3)","v":"2017-05-03"},"A-12345",{"v":33,"d":"33.00"},"Расход 1","Поставки"]
[{"$f":"DATE(YEAR(TODAY()),5,8)","v":"2017-05-08"},"A-12346",{"v":111,"d":"111.00"},"Расход 2"]
[null,null,{"v":342,"d":"342.00"},"Расход 1"]
[null,null,{"v":333,"d":"333.00"},"Расход 3"]
[null,null,{"v":125,"d":"125.00"},"Расход 4"]
[null,null,{"v":33,"d":"33.00"},"Расход 5"]
["Итог",null,{"$f":"SUBTOTAL(109,РасхМай[Сумма])","v":{"v":977,"d":"977.00"}}]

{"sheet":"июн","index":7,"n_rows":9,"n_cols":5,"rows_kept":9,"merged":[[0,0,0,2]]}
["РАСХОДЫ ЗА ИЮНЬ",null,null,"Сводка","Советы"]
["Дата","№ ЗАКАЗА НА ПОКУПКУ","Сумма","Категория","Описание"]
[{"$f":"DATE(YEAR(TODAY()),6,7)","v":"2017-06-07"},"A-12345",{"v":201,"d":"201.00"},"Расход 1","Поставки"]
[{"$f":"DATE(YEAR(TODAY()),6,8)","v":"2017-06-08"},"A-12346",{"v":98,"d":"98.00"},"Расход 2"]
[null,null,{"v":342,"d":"342.00"},"Расход 5"]
[null,null,{"v":122,"d":"122.00"},"Расход 3"]
[null,null,{"v":187,"d":"187.00"},"Расход 4"]
[null,null,{"v":99,"d":"99.00"},"Расход 5"]
["Итог",null,{"$f":"SUBTOTAL(109,РасхИюн[Сумма])","v":{"v":1049,"d":"1,049.00"}}]

{"sheet":"июл","index":8,"n_rows":9,"n_cols":5,"rows_kept":9,"merged":[[0,0,0,2]]}
["РАСХОДЫ ЗА ИЮЛЬ",null,null,"Сводка","Советы"]
["Дата","№ ЗАКАЗА НА ПОКУПКУ","Сумма","Категория","Описание"]
[{"$f":"DATE(YEAR(TODAY()),7,9)","v":"2017-07-09"},"A-12345",null,"Расход 1","Поставки"]
[{"$f":"DATE(YEAR(TODAY()),7,14)","v":"2017-07-14"},"A-12346",null,"Расход 2"]
[{"$nulls":3},"Расход 2"]
[{"$nulls":3},"Расход 3"]
[{"$nulls":3},"Расход 4"]
[{"$nulls":3},"Расход 5"]
["Итог",null,{"$f":"SUBTOTAL(109,РасхИюл[Сумма])","v":{"v":0,"d":"0.00"}}]

{"sheet":"авг","index":9,"n_rows":9,"n_cols":5,"rows_kept":9,"merged":[[0,0,0,2]]}
["РАСХОДЫ ЗА АВГУСТ",null,null,"Сводка","Советы"]
["Дата","№ ЗАКАЗА НА ПОКУПКУ","Сумма","Категория","Описание"]
[{"$f":"DATE(YEAR(TODAY()),8,8)","v":"2017-08-08"},"A-12345",null,"Расход 1","Поставки"]
[{"$f":"DATE(YEAR(TODAY()),8,9)","v":"2017-08-09"},"A-12346",null,"Расход 2"]
[{"$nulls":3},"Расход 2"]
[{"$nulls":3},"Расход 3"]
[{"$nulls":3},"Расход 4"]
[{"$nulls":3},"Расход 5"]
["Итог",null,{"$f":"SUBTOTAL(109,РасхАвг[Сумма])","v":{"v":0,"d":"0.00"}}]

{"sheet":"сен","index":10,"n_rows":9,"n_cols":5,"rows_kept":9,"merged":[[0,0,0,2]]}
["РАСХОДЫ ЗА СЕНТЯБРЬ",null,null,"Сводка","Советы"]
["Дата","№ ЗАКАЗА НА ПОКУПКУ","Сумма","Категория","Описание"]
[{"$f":"DATE(YEAR(TODAY()),9,9)","v":"2017-09-09"},"A-12345",null,"Расход 1","Поставки"]
[{"$f":"DATE(YEAR(TODAY()),9,15)","v":"2017-09-15"},"A-12346",null,"Расход 2"]
[{"$nulls":3},"Расход 2"]
[{"$nulls":3},"Расход 3"]
[{"$nulls":3},"Расход 4"]
[{"$nulls":3},"Расход 5"]
["Итог",null,{"$f":"SUBTOTAL(109,РасхСен[Сумма])","v":{"v":0,"d":"0.00"}}]

{"sheet":"окт","index":11,"n_rows":9,"n_cols":5,"rows_kept":9,"merged":[[0,0,0,2]]}
["РАСХОДЫ ЗА ОКТЯБРЬ",null,null,"Сводка","Советы"]
["Дата","№ ЗАКАЗА НА ПОКУПКУ","Сумма","Категория","Описание"]
[{"$f":"DATE(YEAR(TODAY()),10,10)","v":"2017-10-10"},"A-12345",null,"Расход 1","Поставки"]
[{"$f":"DATE(YEAR(TODAY()),10,21)","v":"2017-10-21"},"A-12346",null,"Расход 2"]
[{"$nulls":3},"Расход 2"]
[{"$nulls":3},"Расход 3"]
[{"$nulls":3},"Расход 4"]
[{"$nulls":3},"Расход 5"]
["Итог",null,{"$f":"SUBTOTAL(109,РасхОкт[Сумма])","v":{"v":0,"d":"0.00"}}]

{"sheet":"ноя","index":12,"n_rows":9,"n_cols":5,"rows_kept":9,"merged":[[0,0,0,2]]}
["РАСХОДЫ ЗА НОЯБРЬ",null,null,"Сводка","Советы"]
["Дата","№ ЗАКАЗА НА ПОКУПКУ","Сумма","Категория","Описание"]
[{"$f":"DATE(YEAR(TODAY()),11,14)","v":"2017-11-14"},"A-12345",null,"Расход 1","Поставки"]
[{"$f":"DATE(YEAR(TODAY()),11,21)","v":"2017-11-21"},"A-12346",null,"Расход 2"]
[{"$nulls":3},"Расход 2"]
[{"$nulls":3},"Расход 3"]
[{"$nulls":3},"Расход 4"]
[{"$nulls":3},"Расход 5"]
["Итог",null,{"$f":"SUBTOTAL(109,РасхНоя[Сумма])","v":{"v":0,"d":"0.00"}}]

{"sheet":"дек","index":13,"n_rows":9,"n_cols":5,"rows_kept":9,"merged":[[0,0,0,2]]}
["РАСХОДЫ ЗА ДЕКАБРЬ",null,null,"Сводка","Советы"]
["Дата","№ ЗАКАЗА НА ПОКУПКУ","Сумма","Категория","Описание"]
[{"$f":"DATE(YEAR(TODAY()),12,2)","v":"2017-12-02"},"A-12345",{"v":201,"d":"201.00"},"Расход 1","Поставки"]
[{"$f":"DATE(YEAR(TODAY()),12,24)","v":"2017-12-24"},"A-12346",{"v":98,"d":"98.00"},"Расход 2"]
[null,null,{"v":342,"d":"342.00"},"Расход 2"]
[null,null,{"v":122,"d":"122.00"},"Расход 3"]
[null,null,{"v":187,"d":"187.00"},"Расход 4"]
[null,null,{"v":99,"d":"99.00"},"Расход 5"]
["Итог",null,{"$f":"SUBTOTAL(109,РасхДек[Сумма])","v":{"v":1049,"d":"1,049.00"}}]